Workbook

Sheet Neuron
A1: The McCulloch and Pitts Neuron.
G8: Weighted Sum | J8: Threshold | M8: Activation Function
C9: Input 1 | E9: Weight 1 | G9: =SUM((C10*E10)+(C15*E15)+(C20*E20)+(C25*E25)) -> 0 | J9: 3 | M9: =IF(G9>=J9,1,0) -> 0
C10: 0 | E10: 1.5
C14: Input 2 | E14: Weight 2
C15: 0 | E15: 1
P17: Output
P18: =M9 -> 0
C19: Input 3 | E19: Weight 3
C20: 0 | E20: 1
C24: Input 4 | E24: Weight 4
C25: 0 | E25: 1
D37: Note Go to the next tab below "Network" to explore an artificial neural network.

Sheet Network
C1: 3 | K1: A simple Artificial Neural Network
K3: Training ---> | M3: =Training!M1 -> And Gate
F5: ='Support sheet'!F5 -> 7.284900803 | G5: ='Support sheet'!H5 -> 7.536746983
C6: Input 1 (Binary 1) | F6: ='Support sheet'!F6 -> 8.742393125 | G6: =SUM((C7*F5)+(C16*F6)+(C25*F7)+(C34*F8)) -> 10.3057841 | H6: =IF(G6>G5,1,0) -> 1
A7: =IF($C$1>32,33,"") ->  | C7: =IF(B7="",Training!A1,B7) -> 0 | F7: ='Support sheet'!F7 -> 1.563390979 | I7: =H6 -> 1
A8: =IF($C$1>31,32,"") ->  | B8: Overide | F8: ='Support sheet'!F8 -> 3.892100648
A9: =IF($C$1>30,31,"") -> 
A10: =IF($C$1>29,30,"") -> 
A11: =IF($C$1>28,29,"") -> 
A12: =IF($C$1>27,28,"") ->  | F12: ='Support sheet'!F12 -> 5.254598247 | G12: ='Support sheet'!H12 -> 5.373735978
A13: =IF($C$1>26,27,"") ->  | F13: ='Support sheet'!F13 -> 7.638605791 | G13: =SUM((C7*F12)+(C16*F13)+(C25*F14)+(C34*F15)) -> 10.35561736 | H13: =IF(G13>G12,1,0) -> 1 | L13: ='Support sheet'!M13 -> 7.583343541
A14: =IF($C$1>25,26,"") ->  | F14: ='Support sheet'!F14 -> 2.717011565 | I14: =H13 -> 1 | L14: ='Support sheet'!M14 -> 2.656659306 | M14: ='Support sheet'!O14 -> 2.363213792
A15: =IF($C$1>24,25,"") ->  | C15: Input 2 (Binary 2) | F15: ='Support sheet'!F15 -> 4.98449472 | L15: ='Support sheet'!M15 -> 1.691405985 | M15: =SUM((I7*L13)+(I14*L14)+(I21*L15)+(I28*L16)+(I35*L17)) -> 16.65970406 | N15: =IF(M15>M14,1,0) -> 1 | R15: Even
A16: =IF($C$1>23,24,"") ->  | C16: =IF(B16="",Training!A2,B16) -> 1 | L16: ='Support sheet'!M16 -> 6.003265412 | O16: =N15 -> 1 | R16: =IF(S16="",Training!C2,S16) -> 0
A17: =IF($C$1>22,23,"") ->  | B17: Overide | L17: ='Support sheet'!M17 -> 0.4164357991 | S17: Overide
A18: =IF($C$1>21,22,"") -> 
A19: =IF($C$1>20,21,"") ->  | F19: ='Support sheet'!F19 -> 5.939129064 | G19: ='Support sheet'!H19 -> 9.151409464
A20: =IF($C$1>19,20,"") ->  | F20: ='Support sheet'!F20 -> 1.820392119 | G20: =SUM((C7*F19)+(C16*F20)+(C25*F21)+(C34*F22)) -> 8.761067413 | H20: =IF(G20>G19,1,0) -> 0
A21: =IF($C$1>18,19,"") ->  | F21: ='Support sheet'!F21 -> 6.940675293 | I21: =H20 -> 0
A22: =IF($C$1>17,18,"") ->  | F22: ='Support sheet'!F22 -> 9.7609677
A23: =IF($C$1>16,17,"") ->  | L23: ='Support sheet'!M23 -> 2.759986197
A24: =IF($C$1>15,16,"") ->  | C24: Input 3 (Binary 4) | L24: ='Support sheet'!M24 -> 5.403695891 | M24: ='Support sheet'!O24 -> 6.425223959
A25: =IF($C$1>14,15,"") ->  | C25: =IF(B25="",Training!A3,B25) -> 1 | L25: ='Support sheet'!M25 -> 3.969845606 | M25: =SUM((I7*L23)+(I14*L24)+(I21*L25)+(I28*L26)+(I35*L27)) -> 14.89506599 | N25: =IF(M25>M24,1,0) -> 1 | R25: Odd
A26: =IF($C$1>13,14,"") ->  | B26: Overide | F26: ='Support sheet'!F26 -> 3.416355362 | G26: ='Support sheet'!H26 -> 6.119562915 | L26: ='Support sheet'!M26 -> 1.647263826 | O26: =N25 -> 1 | R26: =IF(S26="",Training!C3,S26) -> 0
A27: =IF($C$1>12,13,"") ->  | F27: ='Support sheet'!F27 -> 8.512596985 | G27: =SUM((C7*F26)+(C16*F27)+(C25*F28)+(C34*F29)) -> 15.76551166 | H27: =IF(G27>G26,1,0) -> 1 | L27: ='Support sheet'!M27 -> 5.084120075 | S27: Overide
A28: =IF($C$1>11,12,"") ->  | F28: ='Support sheet'!F28 -> 7.252914674 | I28: =H27 -> 1
A29: =IF($C$1>10,11,"") ->  | F29: ='Support sheet'!F29 -> 9.922407177
A30: =IF($C$1>9,10,"") -> 
A31: =IF($C$1>8,9,"") -> 
A32: =IF($C$1>7,8,"") -> 
A33: =IF($C$1>6,7,"") ->  | C33: Input 4 (Binary 8) | F33: ='Support sheet'!F33 -> 8.768978572 | G33: ='Support sheet'!H33 -> 4.747044868
A34: =IF($C$1>5,6,"") ->  | C34: =IF(B34="",Training!A4,B34) -> 0 | F34: ='Support sheet'!F34 -> 4.619563234 | G34: =SUM((C7*F33)+(C16*F34)+(C25*F35)+(C34*F36)) -> 9.849543625 | H34: =IF(G34>G33,1,0) -> 1
A35: =IF($C$1>4,5,"") ->  | B35: Overide | F35: ='Support sheet'!F35 -> 5.229980391 | I35: =H34 -> 1
A36: =IF($C$1>3,4,"") ->  | F36: ='Support sheet'!F36 -> 5.719868593
A37: =IF($C$1>2,3,"") -> 3
A38: =IF($C$1>1,2,"") -> 2
A39: =IF($C$1>0,1,"") -> 1
C43: Notes for use on Network usage.
C44: Note that the input overides are where you input your numbers and they have to contain either a one or a zero before they will work, except during training… then they have to be blank.
C46: Ctrl + R = Randomize pathways
C47: Ctrl + Q = Start Learning Learning
C49: Once again it is important to make sure there is nothing in the Overide Box's… No ones or zeros, but have them blank for learning.
C51: On the Training page select the training session you are interested in and copy it to the Training Field.
C53: The Red learning progress bar on the Left climbes higher with increased network learning and will automatically stop the training session when mastery is attained.

Sheet Support sheet
A1: =(RAND())*10 -> 4.235819007
E5: =IF(C7*F5<>0,K7,0) -> 0 | F5: 7.284900803 | G5: =IF((E5<>0),F5+K7,F5) -> 7.284900803 | H5: 7.536746983
C6: Input 1 | E6: =IF(C16*F6<>0,K7,0) -> -2.1 | F6: 8.742393125 | G6: =IF((E6<>0),F6+K7,F6) -> 6.642393125 | H6: =SUM((C7*F5)+(C16*F6)+(C25*F7)+(C34*F8)) -> 10.3057841 | I6: =IF(H6>H5,1,0) -> 1
C7: =Network!C7 -> 0 | E7: =IF(C25*F7<>0,K7,0) -> -2.1 | F7: 1.563390979 | G7: =IF((E7<>0),F7+K7,F7) -> -0.5366090213 | J7: =I6 -> 1 | K7: =SUM(L13+L23+0.1) -> -2.1
E8: =IF(C34*F8<>0,K7,0) -> 0 | F8: 3.892100648 | G8: =IF((E8<>0),F8+K7,F8) -> 3.892100648
E12: =IF(C7*F12>0,K14,0) -> 0 | F12: 5.254598247 | G12: =IF((E12<>0),F12+K14,F12) -> 5.254598247 | H12: 5.373735978
E13: =IF(C16*F13>0,K14,0) -> -2.1 | F13: 7.638605791 | G13: =IF((E13<>0),F13+K14,F13) -> 5.538605791 | H13: =SUM((C7*F12)+(C16*F13)+(C25*F14)+(C34*F15)) -> 10.35561736 | I13: =IF(H13>H12,1,0) -> 1 | L13: =IF(J7*M13<>0,R16,0) -> -1.1 | M13: 7.583343541 | N13: =IF((L13<>0),M13+R16,M13) -> 6.483343541
E14: =IF(C25*F14>0,K14,0) -> -2.1 | F14: 2.717011565 | G14: =IF((E14<>0),F14+K14,F14) -> 0.6170115651 | J14: =I13 -> 1 | K14: =SUM(L14+L24+0.1) -> -2.1 | L14: =IF(J14*M14<>0,R16,0) -> -1.1 | M14: 2.656659306 | N14: =IF((L14<>0),M14+R16,M14) -> 1.556659306 | O14: 2.363213792
C15: Input 2 | E15: =IF(C34*F15>0,K14,0) -> 0 | F15: 4.98449472 | G15: =IF((E15<>0),F15+K14,F15) -> 4.98449472 | L15: =IF(J21*M15<>0,R16,0) -> 0 | M15: 1.691405985 | N15: =IF((L15<>0),M15+R16,M15) -> 1.691405985 | O15: =SUM((J7*M13)+(J14*M14)+(J21*M15)+(J28*M16)+(J35*M17)) -> 16.65970406 | P15: =IF(O15>O14,1,0) -> 1
C16: =Network!C16 -> 1 | L16: =IF(J28*M16<>0,R16,0) -> -1.1 | M16: 6.003265412 | N16: =IF((L16<>0),M16+R16,M16) -> 4.903265412 | Q16: =P15 -> 1 | R16: =IF(Q16=T16,0,T17) -> -1.1 | T16: =Network!R16 -> 0
L17: =IF(J35*M17<>0,R16,0) -> -1.1 | M17: 0.4164357991 | N17: =IF((L17<>0),M17+R16,M17) -> -0.6835642009 | T17: =IF(Q16>T16,-1.1,1.2) -> -1.1
E19: =IF(C7*F19>0,K21,0) -> 0 | F19: 5.939129064 | G19: =IF((E19<>0),F19+K21,F19) -> 5.939129064 | H19: 9.151409464
E20: =IF(C16*F20>0,K21,0) -> 0.1 | F20: 1.820392119 | G20: =IF((E20<>0),F20+K21,F20) -> 1.920392119 | H20: =SUM((C7*F19)+(C16*F20)+(C25*F21)+(C34*F22)) -> 8.761067413 | I20: =IF(H20>H19,1,0) -> 0
E21: =IF(C25*F21>0,K21,0) -> 0.1 | F21: 6.940675293 | G21: =IF((E21<>0),F21+K21,F21) -> 7.040675293 | J21: =I20 -> 0 | K21: =SUM(L15+L25+0.1) -> 0.1
E22: =IF(C34*F22>0,K21,0) -> 0 | F22: 9.7609677 | G22: =IF((E22<>0),F22+K21,F22) -> 9.7609677
L23: =IF(J7*M23<>0,R26,0) -> -1.1 | M23: 2.759986197 | N23: =IF((L23<>0),M23+R26,M23) -> 1.659986197
C24: Input 3 | L24: =IF(J14*M24<>0,R26,0) -> -1.1 | M24: 5.403695891 | N24: =IF((L24<>0),M24+R26,M24) -> 4.303695891 | O24: 6.425223959
C25: =Network!C25 -> 1 | L25: =IF(J21*M25<>0,R26,0) -> 0 | M25: 3.969845606 | N25: =IF((L25<>0),M25+R26,M25) -> 3.969845606 | O25: =SUM((J7*M23)+(J14*M24)+(J21*M25)+(J28*M26)+(J35*M27)) -> 14.89506599 | P25: =IF(O25>O24,1,0) -> 1
E26: =IF(C7*F26>0,K28,0) -> 0 | F26: 3.416355362 | G26: =IF((E26<>0),F26+K28,F26) -> 3.416355362 | H26: 6.119562915 | L26: =IF(J28*M26<>0,R26,0) -> -1.1 | M26: 1.647263826 | N26: =IF((L26<>0),M26+R26,M26) -> 0.5472638258 | Q26: =P25 -> 1 | R26: =IF(Q26=T26,0,T27) -> -1.1 | T26: =Network!R26 -> 0
E27: =IF(C16*F27>0,K28,0) -> -2.1 | F27: 8.512596985 | G27: =IF((E27<>0),F27+K28,F27) -> 6.412596985 | H27: =SUM((C7*F26)+(C16*F27)+(C25*F28)+(C34*F29)) -> 15.76551166 | I27: =IF(H27>H26,1,0) -> 1 | L27: =IF(J35*M27<>0,R26,0) -> -1.1 | M27: 5.084120075 | N27: =IF((L27<>0),M27+R26,M27) -> 3.984120075 | T27: =IF(Q26>T26,-1.1,1.2) -> -1.1
E28: =IF(C25*F28>0,K28,0) -> -2.1 | F28: 7.252914674 | G28: =IF((E28<>0),F28+K28,F28) -> 5.152914674 | J28: =I27 -> 1 | K28: =SUM(L16+L26+0.1) -> -2.1
E29: =IF(C34*F29>0,K28,0) -> 0 | F29: 9.922407177 | G29: =IF((E29<>0),F29+K28,F29) -> 9.922407177
C33: Input 4 | E33: =IF(C7*F33>0,K35,0) -> 0 | F33: 8.768978572 | G33: =IF((E33<>0),F33+K35,F33) -> 8.768978572 | H33: 4.747044868
C34: =Network!C34 -> 0 | E34: =IF(C16*F34>0,K35,0) -> -2.1 | F34: 4.619563234 | G34: =IF((E34<>0),F34+K35,F34) -> 2.519563234 | H34: =SUM((C7*F33)+(C16*F34)+(C25*F35)+(C34*F36)) -> 9.849543625 | I34: =IF(H34>H33,1,0) -> 1
E35: =IF(C25*F35>0,K35,0) -> -2.1 | F35: 5.229980391 | G35: =IF((E35<>0),F35+K35,F35) -> 3.129980391 | J35: =I34 -> 1 | K35: =SUM(L17+L27+0.1) -> -2.1
E36: =IF(C34*F36<>0,K35,0) -> 0 | F36: 5.719868593 | G36: =IF((E36<>0),F36+K35,F36) -> 5.719868593

Sheet Training
A1: =I2 -> 0 | B1: Inp 1 | F1: Inp 4 (8) | G1: Inp3 (4) | H1: Inp3 (2) | I1: Inp3 (1) | J1: Out Top (E) | K1: Out Btm (O) | M1: And Gate | T1: Even Odd | AA1: And Gate | AH1: Nand Gate & And Gate | AO1: Yes Gate | AV1: Inverter Gate | BC1: Experiment
A2: =H2 -> 1 | B2: Inp 2 | C2: =J2 -> 0 | D2: Out Top | F2: 0 | G2: 1 | H2: 1 | I2: 0 | J2: 0 | K2: 0 | M2: 0 | N2: 1 | O2: 1 | P2: 1 | Q2: 0 | R2: 0 | T2: 0 | U2: 0 | V2: 0 | W2: 1 | X2: 0 | Y2: 1 | AA2: 0 | AB2: 1 | AC2: 1 | AD2: 1 | AE2: 0 | AF2: 0 | AH2: 0 | AI2: 1 | AJ2: 1 | AK2: 1 | AL2: 1 | AM2: 0 | AO2: 1 | AP2: 1 | AQ2: 1 | AR2: 0 | AS2: 0 | AT2: 0 | AV2: 1 | AW2: 1 | AX2: 1 | AY2: 0 | AZ2: 1 | BA2: 1 | BC2: 0 | BD2: 0 | BE2: 0 | BF2: 0 | BG2: 0 | BH2: 0
A3: =G2 -> 1 | B3: Inp 3 | C3: =K2 -> 0 | D3: Out Bottom | F3: 0 | G3: 1 | H3: 1 | I3: 1 | J3: 0 | K3: 0 | M3: 1 | N3: 1 | O3: 1 | P3: 0 | Q3: 0 | R3: 0 | T3: 0 | U3: 0 | V3: 1 | W3: 0 | X3: 1 | Y3: 0 | AA3: 1 | AB3: 1 | AC3: 1 | AD3: 0 | AE3: 0 | AF3: 0 | AH3: 1 | AI3: 1 | AJ3: 1 | AK3: 0 | AL3: 1 | AM3: 0 | AO3: 1 | AP3: 1 | AQ3: 1 | AR3: 1 | AS3: 1 | AT3: 1 | AV3: 1 | AW3: 1 | AX3: 1 | AY3: 1 | AZ3: 0 | BA3: 0 | BC3: 0 | BD3: 0 | BE3: 0 | BF3: 1 | BG3: 0 | BH3: 0
A4: =F2 -> 0 | B4: Inp 4 | F4: 1 | G4: 1 | H4: 1 | I4: 0 | J4: 0 | K4: 0 | M4: 1 | N4: 1 | O4: 1 | P4: 1 | Q4: 1 | R4: 1 | T4: 0 | U4: 0 | V4: 1 | W4: 1 | X4: 0 | Y4: 1 | AA4: 1 | AB4: 1 | AC4: 1 | AD4: 1 | AE4: 1 | AF4: 1 | AH4: 1 | AI4: 1 | AJ4: 1 | AK4: 1 | AL4: 0 | AM4: 1 | AO4: 1 | AP4: 1 | AQ4: 1 | AR4: 0 | AS4: 0 | AT4: 0 | AV4: 1 | AW4: 1 | AX4: 1 | AY4: 0 | AZ4: 1 | BA4: 1 | BC4: 0 | BD4: 0 | BE4: 1 | BF4: 0 | BG4: 0 | BH4: 0
F5: 1 | G5: 1 | H5: 1 | I5: 1 | J5: 1 | K5: 1 | M5: 0 | N5: 1 | O5: 1 | P5: 0 | Q5: 0 | R5: 0 | T5: 0 | U5: 0 | V5: 1 | W5: 0 | X5: 1 | Y5: 0 | AA5: 0 | AB5: 1 | AC5: 1 | AD5: 0 | AE5: 0 | AF5: 0 | AH5: 0 | AI5: 1 | AJ5: 1 | AK5: 0 | AL5: 1 | AM5: 0 | AO5: 1 | AP5: 1 | AQ5: 1 | AR5: 1 | AS5: 1 | AT5: 1 | AV5: 1 | AW5: 1 | AX5: 1 | AY5: 1 | AZ5: 0 | BA5: 0 | BC5: 0 | BD5: 0 | BE5: 1 | BF5: 1 | BG5: 0 | BH5: 0
F6: 0 | G6: 1 | H6: 1 | I6: 0 | J6: 0 | K6: 0 | M6: 0 | N6: 1 | O6: 1 | P6: 1 | Q6: 0 | R6: 0 | T6: 0 | U6: 0 | V6: 1 | W6: 1 | X6: 0 | Y6: 1 | AA6: 0 | AB6: 1 | AC6: 1 | AD6: 1 | AE6: 0 | AF6: 0 | AH6: 0 | AI6: 1 | AJ6: 1 | AK6: 1 | AL6: 1 | AM6: 0 | AO6: 1 | AP6: 1 | AQ6: 1 | AR6: 0 | AS6: 0 | AT6: 0 | AV6: 1 | AW6: 1 | AX6: 1 | AY6: 0 | AZ6: 1 | BA6: 1 | BC6: 0 | BD6: 1 | BE6: 0 | BF6: 0 | BG6: 0 | BH6: 0
F7: 0 | G7: 1 | H7: 1 | I7: 1 | J7: 0 | K7: 0 | M7: 1 | N7: 1 | O7: 1 | P7: 0 | Q7: 0 | R7: 0 | T7: 0 | U7: 1 | V7: 0 | W7: 0 | X7: 1 | Y7: 0 | AA7: 1 | AB7: 1 | AC7: 1 | AD7: 0 | AE7: 0 | AF7: 0 | AH7: 1 | AI7: 1 | AJ7: 1 | AK7: 0 | AL7: 1 | AM7: 0 | AO7: 1 | AP7: 1 | AQ7: 1 | AR7: 1 | AS7: 1 | AT7: 1 | AV7: 1 | AW7: 1 | AX7: 1 | AY7: 1 | AZ7: 0 | BA7: 0 | BC7: 0 | BD7: 1 | BE7: 0 | BF7: 1 | BG7: 0 | BH7: 0
F8: 1 | G8: 1 | H8: 1 | I8: 0 | J8: 0 | K8: 0 | M8: 1 | N8: 1 | O8: 1 | P8: 1 | Q8: 1 | R8: 1 | T8: 0 | U8: 1 | V8: 0 | W8: 1 | X8: 0 | Y8: 1 | AA8: 1 | AB8: 1 | AC8: 1 | AD8: 1 | AE8: 1 | AF8: 1 | AH8: 1 | AI8: 1 | AJ8: 1 | AK8: 1 | AL8: 0 | AM8: 1 | AO8: 1 | AP8: 1 | AQ8: 1 | AR8: 0 | AS8: 0 | AT8: 0 | AV8: 1 | AW8: 1 | AX8: 1 | AY8: 0 | AZ8: 1 | BA8: 1 | BC8: 0 | BD8: 1 | BE8: 1 | BF8: 0 | BG8: 0 | BH8: 0
F9: 1 | G9: 1 | H9: 1 | I9: 1 | J9: 1 | K9: 1 | M9: 0 | N9: 1 | O9: 1 | P9: 0 | Q9: 0 | R9: 0 | T9: 0 | U9: 1 | V9: 1 | W9: 0 | X9: 1 | Y9: 0 | AA9: 0 | AB9: 1 | AC9: 1 | AD9: 0 | AE9: 0 | AF9: 0 | AH9: 0 | AI9: 1 | AJ9: 1 | AK9: 0 | AL9: 1 | AM9: 0 | AO9: 1 | AP9: 1 | AQ9: 1 | AR9: 1 | AS9: 1 | AT9: 1 | AV9: 1 | AW9: 1 | AX9: 1 | AY9: 1 | AZ9: 0 | BA9: 0 | BC9: 0 | BD9: 1 | BE9: 1 | BF9: 1 | BG9: 1 | BH9: 1
F10: 0 | G10: 1 | H10: 1 | I10: 0 | J10: 0 | K10: 0 | M10: 0 | N10: 1 | O10: 1 | P10: 1 | Q10: 0 | R10: 0 | T10: 0 | U10: 1 | V10: 1 | W10: 1 | X10: 0 | Y10: 1 | AA10: 0 | AB10: 1 | AC10: 1 | AD10: 1 | AE10: 0 | AF10: 0 | AH10: 0 | AI10: 1 | AJ10: 1 | AK10: 1 | AL10: 1 | AM10: 0 | AO10: 1 | AP10: 1 | AQ10: 1 | AR10: 0 | AS10: 0 | AT10: 0 | AV10: 1 | AW10: 1 | AX10: 1 | AY10: 0 | AZ10: 1 | BA10: 1 | BC10: 1 | BD10: 0 | BE10: 0 | BF10: 0 | BG10: 0 | BH10: 0
F11: 0 | G11: 1 | H11: 1 | I11: 1 | J11: 0 | K11: 0 | M11: 1 | N11: 1 | O11: 1 | P11: 0 | Q11: 0 | R11: 0 | T11: 1 | U11: 0 | V11: 0 | W11: 0 | X11: 1 | Y11: 0 | AA11: 1 | AB11: 1 | AC11: 1 | AD11: 0 | AE11: 0 | AF11: 0 | AH11: 1 | AI11: 1 | AJ11: 1 | AK11: 0 | AL11: 1 | AM11: 0 | AO11: 1 | AP11: 1 | AQ11: 1 | AR11: 1 | AS11: 1 | AT11: 1 | AV11: 1 | AW11: 1 | AX11: 1 | AY11: 1 | AZ11: 0 | BA11: 0 | BC11: 1 | BD11: 0 | BE11: 0 | BF11: 1 | BG11: 0 | BH11: 0
F12: 1 | G12: 1 | H12: 1 | I12: 0 | J12: 0 | K12: 0 | M12: 1 | N12: 1 | O12: 1 | P12: 1 | Q12: 1 | R12: 1 | T12: 1 | U12: 0 | V12: 0 | W12: 1 | X12: 0 | Y12: 1 | AA12: 1 | AB12: 1 | AC12: 1 | AD12: 1 | AE12: 1 | AF12: 1 | AH12: 1 | AI12: 1 | AJ12: 1 | AK12: 1 | AL12: 0 | AM12: 1 | AO12: 1 | AP12: 1 | AQ12: 1 | AR12: 0 | AS12: 0 | AT12: 0 | AV12: 1 | AW12: 1 | AX12: 1 | AY12: 0 | AZ12: 1 | BA12: 1 | BC12: 1 | BD12: 0 | BE12: 1 | BF12: 0 | BG12: 0 | BH12: 0
F13: 1 | G13: 1 | H13: 1 | I13: 1 | J13: 1 | K13: 1 | M13: 0 | N13: 1 | O13: 1 | P13: 0 | Q13: 0 | R13: 0 | T13: 1 | U13: 0 | V13: 1 | W13: 0 | X13: 1 | Y13: 0 | AA13: 0 | AB13: 1 | AC13: 1 | AD13: 0 | AE13: 0 | AF13: 0 | AH13: 0 | AI13: 1 | AJ13: 1 | AK13: 0 | AL13: 1 | AM13: 0 | AO13: 1 | AP13: 1 | AQ13: 1 | AR13: 1 | AS13: 1 | AT13: 1 | AV13: 1 | AW13: 1 | AX13: 1 | AY13: 1 | AZ13: 0 | BA13: 0 | BC13: 1 | BD13: 0 | BE13: 1 | BF13: 1 | BG13: 1 | BH13: 1
F14: 0 | G14: 1 | H14: 1 | I14: 0 | J14: 0 | K14: 0 | M14: 0 | N14: 1 | O14: 1 | P14: 1 | Q14: 0 | R14: 0 | T14: 1 | U14: 0 | V14: 1 | W14: 1 | X14: 0 | Y14: 1 | AA14: 0 | AB14: 1 | AC14: 1 | AD14: 1 | AE14: 0 | AF14: 0 | AH14: 0 | AI14: 1 | AJ14: 1 | AK14: 1 | AL14: 1 | AM14: 0 | AO14: 1 | AP14: 1 | AQ14: 1 | AR14: 0 | AS14: 0 | AT14: 0 | AV14: 1 | AW14: 1 | AX14: 1 | AY14: 0 | AZ14: 1 | BA14: 1 | BC14: 1 | BD14: 1 | BE14: 0 | BF14: 0 | BG14: 0 | BH14: 0
F15: 1 | G15: 1 | H15: 1 | I15: 1 | J15: 1 | K15: 1 | M15: 1 | N15: 1 | O15: 1 | P15: 0 | Q15: 0 | R15: 0 | T15: 1 | U15: 1 | V15: 0 | W15: 0 | X15: 1 | Y15: 0 | AA15: 1 | AB15: 1 | AC15: 1 | AD15: 0 | AE15: 0 | AF15: 0 | AH15: 1 | AI15: 1 | AJ15: 1 | AK15: 0 | AL15: 1 | AM15: 0 | AO15: 1 | AP15: 1 | AQ15: 1 | AR15: 1 | AS15: 1 | AT15: 1 | AV15: 1 | AW15: 1 | AX15: 1 | AY15: 1 | AZ15: 0 | BA15: 0 | BC15: 1 | BD15: 1 | BE15: 0 | BF15: 1 | BG15: 1 | BH15: 1
M16: 1 | N16: 1 | O16: 1 | P16: 1 | Q16: 1 | R16: 1 | T16: 1 | U16: 1 | V16: 0 | W16: 1 | X16: 0 | Y16: 1 | AA16: 1 | AB16: 1 | AC16: 1 | AD16: 1 | AE16: 1 | AF16: 1 | AH16: 1 | AI16: 1 | AJ16: 1 | AK16: 1 | AL16: 0 | AM16: 1 | AO16: 1 | AP16: 1 | AQ16: 1 | AR16: 0 | AS16: 0 | AT16: 0 | AV16: 1 | AW16: 1 | AX16: 1 | AY16: 0 | AZ16: 1 | BA16: 1 | BC16: 1 | BD16: 1 | BE16: 1 | BF16: 0 | BG16: 1 | BH16: 1
M17: 0 | N17: 1 | O17: 1 | P17: 0 | Q17: 0 | R17: 0 | T17: 1 | U17: 1 | V17: 1 | W17: 0 | X17: 1 | Y17: 0 | AA17: 0 | AB17: 1 | AC17: 1 | AD17: 0 | AE17: 0 | AF17: 0 | AH17: 0 | AI17: 1 | AJ17: 1 | AK17: 0 | AL17: 1 | AM17: 0 | AO17: 1 | AP17: 1 | AQ17: 1 | AR17: 1 | AS17: 1 | AT17: 1 | AV17: 1 | AW17: 1 | AX17: 1 | AY17: 1 | AZ17: 0 | BA17: 0 | BC17: 1 | BD17: 1 | BE17: 1 | BF17: 1 | BG17: 0 | BH17: 0
M18: 1 | N18: 1 | O18: 1 | P18: 1 | Q18: 1 | R18: 1 | T18: 1 | U18: 1 | V18: 1 | W18: 1 | X18: 0 | Y18: 1 | AA18: 1 | AB18: 1 | AC18: 1 | AD18: 1 | AE18: 1 | AF18: 1 | AH18: 1 | AI18: 1 | AJ18: 1 | AK18: 1 | AL18: 0 | AM18: 1 | AO18: 1 | AP18: 1 | AQ18: 1 | AR18: 0 | AS18: 0 | AT18: 0 | AV18: 1 | AW18: 1 | AX18: 1 | AY18: 0 | AZ18: 1 | BA18: 1 | BC18: 0 | BD18: 0 | BE18: 0 | BF18: 0 | BG18: 0 | BH18: 0
T20: Or Gate | AA20: Nand Gate | AH20: Nor Gate | AO20: Inverter Gate | AV20: Xor Gate
T21: 0 | U21: 1 | V21: 1 | W21: 1 | X21: 1 | Y21: 1 | AA21: 0 | AB21: 1 | AC21: 1 | AD21: 1 | AE21: 1 | AF21: 1 | AH21: 0 | AI21: 1 | AJ21: 1 | AK21: 1 | AL21: 0 | AM21: 0 | AO21: 1 | AP21: 1 | AQ21: 1 | AR21: 0 | AS21: 1 | AT21: 1 | AV21: 0 | AW21: 1 | AX21: 1 | AY21: 0 | AZ21: 0 | BA21: 0
M22: Training field above | T22: 1 | U22: 1 | V22: 1 | W22: 0 | X22: 1 | Y22: 1 | AA22: 1 | AB22: 1 | AC22: 1 | AD22: 0 | AE22: 1 | AF22: 1 | AH22: 1 | AI22: 1 | AJ22: 1 | AK22: 0 | AL22: 0 | AM22: 0 | AO22: 1 | AP22: 1 | AQ22: 1 | AR22: 1 | AS22: 0 | AT22: 0 | AV22: 0 | AW22: 1 | AX22: 1 | AY22: 1 | AZ22: 1 | BA22: 1
T23: 1 | U23: 1 | V23: 1 | W23: 1 | X23: 1 | Y23: 1 | AA23: 1 | AB23: 1 | AC23: 1 | AD23: 1 | AE23: 0 | AF23: 0 | AH23: 1 | AI23: 1 | AJ23: 1 | AK23: 1 | AL23: 0 | AM23: 0 | AO23: 1 | AP23: 1 | AQ23: 1 | AR23: 0 | AS23: 1 | AT23: 1 | AV23: 1 | AW23: 1 | AX23: 1 | AY23: 0 | AZ23: 1 | BA23: 1
T24: 0 | U24: 1 | V24: 1 | W24: 0 | X24: 0 | Y24: 0 | AA24: 0 | AB24: 1 | AC24: 1 | AD24: 0 | AE24: 1 | AF24: 1 | AH24: 0 | AI24: 1 | AJ24: 1 | AK24: 0 | AL24: 1 | AM24: 1 | AO24: 1 | AP24: 1 | AQ24: 1 | AR24: 1 | AS24: 0 | AT24: 0 | AV24: 1 | AW24: 1 | AX24: 1 | AY24: 1 | AZ24: 0 | BA24: 0
T25: 0 | U25: 1 | V25: 1 | W25: 1 | X25: 1 | Y25: 1 | AA25: 0 | AB25: 1 | AC25: 1 | AD25: 1 | AE25: 1 | AF25: 1 | AH25: 0 | AI25: 1 | AJ25: 1 | AK25: 1 | AL25: 0 | AM25: 0 | AO25: 1 | AP25: 1 | AQ25: 1 | AR25: 0 | AS25: 1 | AT25: 1 | AV25: 0 | AW25: 1 | AX25: 1 | AY25: 0 | AZ25: 0 | BA25: 0
T26: 1 | U26: 1 | V26: 1 | W26: 0 | X26: 1 | Y26: 1 | AA26: 1 | AB26: 1 | AC26: 1 | AD26: 0 | AE26: 1 | AF26: 1 | AH26: 1 | AI26: 1 | AJ26: 1 | AK26: 0 | AL26: 0 | AM26: 0 | AO26: 1 | AP26: 1 | AQ26: 1 | AR26: 1 | AS26: 0 | AT26: 0 | AV26: 0 | AW26: 1 | AX26: 1 | AY26: 1 | AZ26: 1 | BA26: 1
T27: 1 | U27: 1 | V27: 1 | W27: 1 | X27: 1 | Y27: 1 | AA27: 1 | AB27: 1 | AC27: 1 | AD27: 1 | AE27: 0 | AF27: 0 | AH27: 1 | AI27: 1 | AJ27: 1 | AK27: 1 | AL27: 0 | AM27: 0 | AO27: 1 | AP27: 1 | AQ27: 1 | AR27: 0 | AS27: 1 | AT27: 1 | AV27: 1 | AW27: 1 | AX27: 1 | AY27: 0 | AZ27: 1 | BA27: 1
T28: 0 | U28: 1 | V28: 1 | W28: 0 | X28: 0 | Y28: 0 | AA28: 0 | AB28: 1 | AC28: 1 | AD28: 0 | AE28: 1 | AF28: 1 | AH28: 0 | AI28: 1 | AJ28: 1 | AK28: 0 | AL28: 1 | AM28: 1 | AO28: 1 | AP28: 1 | AQ28: 1 | AR28: 1 | AS28: 0 | AT28: 0 | AV28: 1 | AW28: 1 | AX28: 1 | AY28: 1 | AZ28: 0 | BA28: 0
T29: 0 | U29: 1 | V29: 1 | W29: 1 | X29: 1 | Y29: 1 | AA29: 0 | AB29: 1 | AC29: 1 | AD29: 1 | AE29: 1 | AF29: 1 | AH29: 0 | AI29: 1 | AJ29: 1 | AK29: 1 | AL29: 0 | AM29: 0 | AO29: 1 | AP29: 1 | AQ29: 1 | AR29: 0 | AS29: 1 | AT29: 1 | AV29: 0 | AW29: 1 | AX29: 1 | AY29: 0 | AZ29: 0 | BA29: 0
T30: 1 | U30: 1 | V30: 1 | W30: 0 | X30: 1 | Y30: 1 | AA30: 1 | AB30: 1 | AC30: 1 | AD30: 0 | AE30: 1 | AF30: 1 | AH30: 1 | AI30: 1 | AJ30: 1 | AK30: 0 | AL30: 0 | AM30: 0 | AO30: 1 | AP30: 1 | AQ30: 1 | AR30: 1 | AS30: 0 | AT30: 0 | AV30: 0 | AW30: 1 | AX30: 1 | AY30: 1 | AZ30: 1 | BA30: 1
T31: 1 | U31: 1 | V31: 1 | W31: 1 | X31: 1 | Y31: 1 | AA31: 1 | AB31: 1 | AC31: 1 | AD31: 1 | AE31: 0 | AF31: 0 | AH31: 1 | AI31: 1 | AJ31: 1 | AK31: 1 | AL31: 0 | AM31: 0 | AO31: 1 | AP31: 1 | AQ31: 1 | AR31: 0 | AS31: 1 | AT31: 1 | AV31: 1 | AW31: 1 | AX31: 1 | AY31: 0 | AZ31: 1 | BA31: 1
T32: 0 | U32: 1 | V32: 1 | W32: 0 | X32: 0 | Y32: 0 | AA32: 0 | AB32: 1 | AC32: 1 | AD32: 0 | AE32: 1 | AF32: 1 | AH32: 0 | AI32: 1 | AJ32: 1 | AK32: 0 | AL32: 1 | AM32: 1 | AO32: 1 | AP32: 1 | AQ32: 1 | AR32: 1 | AS32: 0 | AT32: 0 | AV32: 1 | AW32: 1 | AX32: 1 | AY32: 1 | AZ32: 0 | BA32: 0
T33: 0 | U33: 1 | V33: 1 | W33: 1 | X33: 1 | Y33: 1 | AA33: 0 | AB33: 1 | AC33: 1 | AD33: 1 | AE33: 1 | AF33: 1 | AH33: 0 | AI33: 1 | AJ33: 1 | AK33: 1 | AL33: 0 | AM33: 0 | AO33: 1 | AP33: 1 | AQ33: 1 | AR33: 0 | AS33: 1 | AT33: 1 | AV33: 0 | AW33: 1 | AX33: 1 | AY33: 0 | AZ33: 0 | BA33: 0
T34: 1 | U34: 1 | V34: 1 | W34: 0 | X34: 1 | Y34: 1 | AA34: 1 | AB34: 1 | AC34: 1 | AD34: 0 | AE34: 1 | AF34: 1 | AH34: 1 | AI34: 1 | AJ34: 1 | AK34: 0 | AL34: 0 | AM34: 0 | AO34: 1 | AP34: 1 | AQ34: 1 | AR34: 1 | AS34: 0 | AT34: 0 | AV34: 0 | AW34: 1 | AX34: 1 | AY34: 1 | AZ34: 1 | BA34: 1
T35: 1 | U35: 1 | V35: 1 | W35: 1 | X35: 1 | Y35: 1 | AA35: 1 | AB35: 1 | AC35: 1 | AD35: 1 | AE35: 0 | AF35: 0 | AH35: 1 | AI35: 1 | AJ35: 1 | AK35: 1 | AL35: 0 | AM35: 0 | AO35: 1 | AP35: 1 | AQ35: 1 | AR35: 0 | AS35: 1 | AT35: 1 | AV35: 1 | AW35: 1 | AX35: 1 | AY35: 0 | AZ35: 1 | BA35: 1
T36: 0 | U36: 1 | V36: 1 | W36: 0 | X36: 0 | Y36: 0 | AA36: 0 | AB36: 1 | AC36: 1 | AD36: 0 | AE36: 1 | AF36: 1 | AH36: 0 | AI36: 1 | AJ36: 1 | AK36: 0 | AL36: 1 | AM36: 1 | AO36: 1 | AP36: 1 | AQ36: 1 | AR36: 1 | AS36: 0 | AT36: 0 | AV36: 1 | AW36: 1 | AX36: 1 | AY36: 1 | AZ36: 0 | BA36: 0
T37: 1 | U37: 1 | V37: 1 | W37: 1 | X37: 1 | Y37: 1 | AA37: 1 | AB37: 1 | AC37: 1 | AD37: 1 | AE37: 0 | AF37: 0 | AH37: 1 | AI37: 1 | AJ37: 1 | AK37: 1 | AL37: 0 | AM37: 0 | AO37: 1 | AP37: 1 | AQ37: 1 | AR37: 0 | AS37: 1 | AT37: 1 | AV37: 0 | AW37: 1 | AX37: 1 | AY37: 1 | AZ37: 1 | BA37: 1
